[Event "*** SCC Grand Prix: Titled Tuesday Blitz"]
[Site "Chess.com"]
[Date "2020.10.06"]
[Round "6"]
[White "AsaHoffmann"]
[Black "TrickyFortem"]
[Result "0-1"]
[WhiteElo "2336"]
[BlackElo "2467"]
[TimeControl "180+1"]
[EndTime "11:08:33 PDT"]
[Termination "TrickyFortem won on time"]

1. d4 {[%clk 0:02:56.9]} 1... f5 {[%clk 0:02:59.7]} 2. Nc3 {[%clk 0:02:55.3]}
2... d5 {[%clk 0:02:58.4]} 3. f3 {[%clk 0:02:54.2]} 3... Nf6 {[%clk 0:02:57.9]}
4. Bg5 {[%clk 0:02:53.7]} 4... Nc6 {[%clk 0:02:54.6]} 5. e4 {[%clk 0:02:53]}
5... dxe4 {[%clk 0:02:54.8]} 6. d5 {[%clk 0:02:51.4]} 6... Ne5 {[%clk
0:02:53.9]} 7. fxe4 {[%clk 0:02:50.9]} 7... g6 {[%clk 0:02:53.5]} 8. Qd4 {[%clk
0:02:43.8]} 8... Nf7 {[%clk 0:02:50.2]} 9. Bxf6 {[%clk 0:02:40.7]} 9... exf6
{[%clk 0:02:51.1]} 10. exf5 {[%clk 0:02:38.2]} 10... Bxf5 {[%clk 0:02:50.4]} 11.
O-O-O {[%clk 0:02:36.9]} 11... Bh6+ {[%clk 0:02:50.6]} 12. Kb1 {[%clk
0:02:36.4]} 12... O-O {[%clk 0:02:51.3]} 13. Nf3 {[%clk 0:02:35]} 13... Re8
{[%clk 0:02:47.3]} 14. Bd3 {[%clk 0:02:25]} 14... Be3 {[%clk 0:02:45.4]} 15. Qb4
{[%clk 0:02:20.5]} 15... a5 {[%clk 0:02:43.6]} 16. Qa4 {[%clk 0:02:04.9]} 16...
Bd7 {[%clk 0:02:38.6]} 17. Bb5 {[%clk 0:02:02.2]} 17... Bxb5 {[%clk 0:02:38.1]}
18. Qxb5 {[%clk 0:02:01.6]} 18... Nd6 {[%clk 0:02:37.8]} 19. Qd3 {[%clk
0:02:00.3]} 19... b5 {[%clk 0:02:37.8]} 20. h4 {[%clk 0:01:59.4]} 20... b4
{[%clk 0:02:37.2]} 21. Nb5 {[%clk 0:01:53.4]} 21... Ne4 {[%clk 0:02:32.6]} 22.
Qc4 {[%clk 0:01:36.4]} 22... Nd6 {[%clk 0:02:25.3]} 23. Nxd6 {[%clk 0:01:32.5]}
23... cxd6 {[%clk 0:02:24.7]} 24. h5 {[%clk 0:01:31.7]} 24... g5 {[%clk
0:02:24.5]} 25. h6 {[%clk 0:01:26.6]} 25... Rc8 {[%clk 0:02:23.1]} 26. Qd3
{[%clk 0:01:24.9]} 26... Qd7 {[%clk 0:02:15.8]} 27. Nd4 {[%clk 0:01:23.6]} 27...
Bxd4 {[%clk 0:02:15]} 28. Qxd4 {[%clk 0:01:23.3]} 28... Qf5 {[%clk 0:02:15.2]}
29. Rc1 {[%clk 0:01:13.3]} 29... Rc7 {[%clk 0:02:11.2]} 30. Rhf1 {[%clk
0:01:12.1]} 30... Qe5 {[%clk 0:02:01.9]} 31. Qb6 {[%clk 0:01:06.5]} 31... Rec8
{[%clk 0:01:59]} 32. Qxa5 {[%clk 0:01:00.9]} 32... Kf7 {[%clk 0:01:53.2]} 33.
Qxb4 {[%clk 0:00:57.5]} 33... Qxd5 {[%clk 0:01:52.5]} 34. Rfd1 {[%clk
0:00:54.2]} 34... Qxg2 {[%clk 0:01:51.8]} 35. Qxd6 {[%clk 0:00:53.4]} 35... Kg6
{[%clk 0:01:48.4]} 36. Qd3+ {[%clk 0:00:52.1]} 36... f5 {[%clk 0:01:31.3]} 37.
Qd6+ {[%clk 0:00:38.6]} 37... Kf7 {[%clk 0:01:31.2]} 38. c3 {[%clk 0:00:36.8]}
38... Qe4+ {[%clk 0:01:24.8]} 39. Ka1 {[%clk 0:00:35.1]} 39... Qe6 {[%clk
0:01:24.4]} 40. Qd4 {[%clk 0:00:22.9]} 40... Kg6 {[%clk 0:01:21.2]} 41. Re1
{[%clk 0:00:15.8]} 41... Qc6 {[%clk 0:01:17.8]} 42. Rg1 {[%clk 0:00:13]} 42...
g4 {[%clk 0:00:57.5]} 43. Qf4 {[%clk 0:00:11.8]} 43... Ra7 {[%clk 0:00:49.5]}
44. Rxg4+ {[%clk 0:00:11]} 44... fxg4 {[%clk 0:00:49.4]} 45. Qxg4+ {[%clk
0:00:10.8]} 45... Kf6 {[%clk 0:00:45.3]} 46. Rf1+ {[%clk 0:00:09.3]} 46... Ke7
{[%clk 0:00:43.3]} 47. Qg7+ {[%clk 0:00:08.5]} 47... Kd6 {[%clk 0:00:43.4]} 48.
Qxa7 {[%clk 0:00:08]} 48... Qc4 {[%clk 0:00:42.4]} 49. Qd4+ {[%clk 0:00:06.7]}
49... Qxd4 {[%clk 0:00:42.4]} 50. cxd4 {[%clk 0:00:06.5]} 50... Rc2 {[%clk
0:00:42.4]} 51. Kb1 {[%clk 0:00:05.5]} 51... Rh2 {[%clk 0:00:42.6]} 52. a4
{[%clk 0:00:05.1]} 52... Rxh6 {[%clk 0:00:42.3]} 53. a5 {[%clk 0:00:04.9]} 53...
Kd5 {[%clk 0:00:42.7]} 54. Rd1 {[%clk 0:00:03.2]} 54... Ra6 {[%clk 0:00:38.9]}
55. b4 {[%clk 0:00:02.7]} 55... Kc4 {[%clk 0:00:39.3]} 56. d5 {[%clk 0:00:01.9]}
56... Rd6 {[%clk 0:00:38.4]} 0-1

[Event "*** SCC Grand Prix: Titled Tuesday Blitz"]
[Site "Chess.com"]
[Date "2020.10.06"]
[Round "6"]
[White "kidagent"]
[Black "chessmadara"]
[Result "1-0"]
[WhiteElo "2286"]
[BlackElo "2105"]
[TimeControl "180+1"]
[EndTime "11:08:33 PDT"]
[Termination "kidagent won by resignation"]

1. e4 {[%clk 0:03:00.9]} 1... c5 {[%clk 0:02:59.4]} 2. Nf3 {[%clk 0:03:00.8]}
2... Nc6 {[%clk 0:02:58.5]} 3. d4 {[%clk 0:03:01]} 3... cxd4 {[%clk 0:02:57.9]}
4. Nxd4 {[%clk 0:03:01.9]} 4... g6 {[%clk 0:02:58]} 5. Nc3 {[%clk 0:03:01.1]}
5... Bg7 {[%clk 0:02:57.8]} 6. Be3 {[%clk 0:03:01.1]} 6... Nf6 {[%clk
0:02:57.3]} 7. Be2 {[%clk 0:03:01.2]} 7... O-O {[%clk 0:02:56.4]} 8. Nb3 {[%clk
0:03:01.3]} 8... d6 {[%clk 0:02:54.9]} 9. O-O {[%clk 0:03:01.4]} 9... Be6 {[%clk
0:02:52.1]} 10. f4 {[%clk 0:03:01.4]} 10... Qc8 {[%clk 0:02:50.7]} 11. h3 {[%clk
0:03:01.1]} 11... Rd8 {[%clk 0:02:49.4]} 12. g4 {[%clk 0:02:58.8]} 12... d5
{[%clk 0:02:42]} 13. e5 {[%clk 0:02:59.1]} 13... d4 {[%clk 0:02:28.6]} 14. Nxd4
{[%clk 0:02:19.3]} 14... Nxd4 {[%clk 0:02:16.3]} 15. Bxd4 {[%clk 0:02:19.2]}
15... Nd5 {[%clk 0:02:15.1]} 16. Nxd5 {[%clk 0:01:51.6]} 16... Bxd5 {[%clk
0:02:04.9]} 17. c3 {[%clk 0:01:50.7]} 17... h5 {[%clk 0:01:58.5]} 18. Qe1 {[%clk
0:01:46.5]} 18... hxg4 {[%clk 0:01:46.8]} 19. hxg4 {[%clk 0:01:45.8]} 19... Bc4
{[%clk 0:01:24.3]} 20. b3 {[%clk 0:01:31.6]} 20... Bd5 {[%clk 0:01:12]} 21. Qf2
{[%clk 0:01:27.7]} 21... Qc6 {[%clk 0:01:05.5]} 22. Rae1 {[%clk 0:01:19.8]}
22... b5 {[%clk 0:01:05]} 23. f5 {[%clk 0:01:17.6]} 23... b4 {[%clk 0:00:53.8]}
24. cxb4 {[%clk 0:01:11.5]} 24... Rac8 {[%clk 0:00:39.9]} 25. Bxa7 {[%clk
0:01:08.8]} 25... Bxe5 {[%clk 0:00:29.1]} 26. Bc5 {[%clk 0:00:58.9]} 26... Bf6
{[%clk 0:00:23]} 27. Bf3 {[%clk 0:00:43.3]} 27... Bxf3 {[%clk 0:00:19.6]} 28.
Qxf3 {[%clk 0:00:43.5]} 28... Qb5 {[%clk 0:00:19.2]} 29. a4 {[%clk 0:00:36.8]}
29... Qb8 {[%clk 0:00:17.4]} 30. fxg6 {[%clk 0:00:33.9]} 30... fxg6 {[%clk
0:00:16.9]} 31. Bxe7 {[%clk 0:00:33.9]} 31... Qa7+ {[%clk 0:00:12.8]} 32. Bc5
{[%clk 0:00:32.5]} 32... Rxc5 {[%clk 0:00:11.6]} 33. bxc5 {[%clk 0:00:32]} 33...
Qxc5+ {[%clk 0:00:12.5]} 34. Kg2 {[%clk 0:00:29.7]} 34... Qg5 {[%clk 0:00:12.1]}
35. Re2 {[%clk 0:00:20.2]} 35... Bg7 {[%clk 0:00:10.3]} 36. Rfe1 {[%clk
0:00:18.6]} 36... Rf8 {[%clk 0:00:09.3]} 37. Qe4 {[%clk 0:00:16.5]} 37... Rf4
{[%clk 0:00:08.1]} 38. Qe6+ {[%clk 0:00:15.8]} 38... Kh7 {[%clk 0:00:07.8]} 39.
Rh1+ {[%clk 0:00:15.4]} 39... Bh6 {[%clk 0:00:07]} 40. Qd7+ {[%clk 0:00:15.5]}
40... Kg8 {[%clk 0:00:05.6]} 41. Re8+ {[%clk 0:00:15.4]} 41... Rf8 {[%clk
0:00:05.9]} 42. Qe6+ {[%clk 0:00:15]} 42... Kg7 {[%clk 0:00:06.1]} 43. Rxf8
{[%clk 0:00:15.2]} 43... Kxf8 {[%clk 0:00:06.1]} 44. Rf1+ {[%clk 0:00:15.3]}
44... Kg7 {[%clk 0:00:05.7]} 45. Rf7+ {[%clk 0:00:15.6]} 1-0

[Event "*** SCC Grand Prix: Titled Tuesday Blitz"]
[Site "Chess.com"]
[Date "2020.10.06"]
[Round "6"]
[White "ehrenfeld"]
[Black "grzechu96"]
[Result "0-1"]
[WhiteElo "2511"]
[BlackElo "2688"]
[TimeControl "180+1"]
[EndTime "11:08:34 PDT"]
[Termination "grzechu96 won on time"]

1. e4 {[%clk 0:03:00.9]} 1... c5 {[%clk 0:02:59.7]} 2. Nc3 {[%clk 0:03:00.9]}
2... a6 {[%clk 0:02:59.4]} 3. f4 {[%clk 0:02:58.8]} 3... b5 {[%clk 0:02:59.4]}
4. g3 {[%clk 0:02:58.6]} 4... Bb7 {[%clk 0:02:59.5]} 5. Bg2 {[%clk 0:02:58.4]}
5... e6 {[%clk 0:03:00.1]} 6. d3 {[%clk 0:02:57.8]} 6... d5 {[%clk 0:03:00.6]}
7. f5 {[%clk 0:02:50.9]} 7... d4 {[%clk 0:02:55.5]} 8. fxe6 {[%clk 0:02:49.7]}
8... fxe6 {[%clk 0:02:56.1]} 9. Nce2 {[%clk 0:02:48.8]} 9... e5 {[%clk
0:02:56.2]} 10. Nf3 {[%clk 0:02:48.2]} 10... Nd7 {[%clk 0:02:56.3]} 11. O-O
{[%clk 0:02:46.6]} 11... Ngf6 {[%clk 0:02:56.5]} 12. c3 {[%clk 0:02:46.1]} 12...
Bd6 {[%clk 0:02:53.3]} 13. cxd4 {[%clk 0:02:38.5]} 13... cxd4 {[%clk 0:02:53.7]}
14. a4 {[%clk 0:02:20]} 14... b4 {[%clk 0:02:32.4]} 15. Bd2 {[%clk 0:02:07.7]}
15... a5 {[%clk 0:02:31]} 16. h3 {[%clk 0:01:52.8]} 16... O-O {[%clk 0:02:17.8]}
17. g4 {[%clk 0:01:52.4]} 17... Ba6 {[%clk 0:02:12.8]} 18. Bg5 {[%clk
0:01:45.3]} 18... Nc5 {[%clk 0:01:59.6]} 19. Ne1 {[%clk 0:01:38.4]} 19... Be7
{[%clk 0:01:51]} 20. Ng3 {[%clk 0:01:30.9]} 20... g6 {[%clk 0:01:41.2]} 21. Bh6
{[%clk 0:01:29.6]} 21... Rf7 {[%clk 0:01:41.5]} 22. g5 {[%clk 0:01:23.4]} 22...
Nfd7 {[%clk 0:01:32.6]} 23. Rxf7 {[%clk 0:01:22.9]} 23... Kxf7 {[%clk
0:01:33.5]} 24. h4 {[%clk 0:01:21.2]} 24... Bf8 {[%clk 0:01:23.9]} 25. Bxf8
{[%clk 0:01:18.5]} 25... Qxf8 {[%clk 0:01:23.2]} 26. Bh3 {[%clk 0:01:17.1]}
26... Kg8 {[%clk 0:01:22.8]} 27. Rc1 {[%clk 0:01:03]} 27... Qf4 {[%clk
0:01:02.2]} 28. Kg2 {[%clk 0:00:45.4]} 28... Rf8 {[%clk 0:00:46.3]} 29. Rc2
{[%clk 0:00:35.2]} 29... Qxh4 {[%clk 0:00:30.7]} 30. Qc1 {[%clk 0:00:20.5]}
30... Nxd3 {[%clk 0:00:10.5]} 31. Nxd3 {[%clk 0:00:18.3]} 31... Bxd3 {[%clk
0:00:11.4]} 32. Bxd7 {[%clk 0:00:16]} 32... Bxc2 {[%clk 0:00:05.6]} 33. Qxc2
{[%clk 0:00:15]} 33... Qxg5 {[%clk 0:00:06.1]} 34. Be6+ {[%clk 0:00:14.3]} 34...
Kh8 {[%clk 0:00:05.2]} 35. b3 {[%clk 0:00:08.9]} 35... Qf6 {[%clk 0:00:04]} 36.
Qc6 {[%clk 0:00:06.3]} 36... d3 {[%clk 0:00:03]} 37. Qd5 {[%clk 0:00:03.7]}
37... d2 {[%clk 0:00:03.1]} 38. Bg4 {[%clk 0:00:03.2]} 38... Qf2+ {[%clk
0:00:03.3]} 39. Kh3 {[%clk 0:00:02.9]} 39... Qd4 {[%clk 0:00:03.6]} 0-1

[Event "*** SCC Grand Prix: Titled Tuesday Blitz"]
[Site "Chess.com"]
[Date "2020.10.06"]
[Round "6"]
[White "louis198"]
[Black "Rogarcia1"]
[Result "1-0"]
[WhiteElo "2574"]
[BlackElo "2183"]
[TimeControl "180+1"]
[EndTime "11:08:34 PDT"]
[Termination "louis198 won by resignation"]

1. d4 {[%clk 0:02:23.4]} 1... d5 {[%clk 0:02:59]} 2. c4 {[%clk 0:02:23.8]} 2...
c6 {[%clk 0:02:59.2]} 3. Nc3 {[%clk 0:02:23.9]} 3... Nf6 {[%clk 0:02:59.2]} 4.
Nf3 {[%clk 0:02:22.8]} 4... e6 {[%clk 0:02:59.1]} 5. Bg5 {[%clk 0:02:22.5]} 5...
Nbd7 {[%clk 0:02:58.3]} 6. e3 {[%clk 0:02:22.7]} 6... Be7 {[%clk 0:02:58.1]} 7.
cxd5 {[%clk 0:02:22]} 7... exd5 {[%clk 0:02:55.6]} 8. Qc2 {[%clk 0:02:21.3]}
8... Nf8 {[%clk 0:02:49.3]} 9. Bd3 {[%clk 0:02:19.1]} 9... Ne6 {[%clk
0:02:48.7]} 10. Bh4 {[%clk 0:02:19.2]} 10... g6 {[%clk 0:02:47.8]} 11. Ne5
{[%clk 0:02:18.2]} 11... Ng7 {[%clk 0:02:32.8]} 12. h3 {[%clk 0:02:13]} 12...
Bf5 {[%clk 0:02:24.3]} 13. g4 {[%clk 0:02:12.7]} 13... Bxd3 {[%clk 0:02:20.3]}
14. Qxd3 {[%clk 0:02:13.1]} 14... O-O {[%clk 0:02:11.2]} 15. f4 {[%clk 0:02:12]}
15... Ne4 {[%clk 0:02:01.9]} 16. Bxe7 {[%clk 0:02:11]} 16... Qxe7 {[%clk
0:02:01]} 17. h4 {[%clk 0:02:07.1]} 17... f6 {[%clk 0:01:42.5]} 18. Nxe4 {[%clk
0:02:03]} 18... fxe5 {[%clk 0:01:07.7]} 19. Ng5 {[%clk 0:02:02.1]} 19... exf4
{[%clk 0:01:07.1]} 20. e4 {[%clk 0:02:02.6]} 20... dxe4 {[%clk 0:01:03.1]} 21.
Qb3+ {[%clk 0:02:02.7]} 21... Kh8 {[%clk 0:01:02.7]} 22. Rc1 {[%clk 0:01:54.6]}
22... e3 {[%clk 0:00:58.6]} 23. Rc5 {[%clk 0:01:54.9]} 23... f3 {[%clk 0:00:54]}
24. Re5 {[%clk 0:01:55.1]} 24... f2+ {[%clk 0:00:49]} 25. Ke2 {[%clk 0:01:55.3]}
25... Qd7 {[%clk 0:00:48.1]} 26. Qxe3 {[%clk 0:01:40.8]} 26... Qxg4+ {[%clk
0:00:47.3]} 27. Nf3 {[%clk 0:01:41.4]} 27... Nh5 {[%clk 0:00:28.9]} 28. Rxh5
{[%clk 0:01:37.9]} 28... Qxh5 {[%clk 0:00:26.8]} 29. Kxf2 {[%clk 0:01:37.9]}
29... Rae8 {[%clk 0:00:26]} 30. Qc3 {[%clk 0:01:38]} 30... Qd5 {[%clk
0:00:24.1]} 31. Rh3 {[%clk 0:01:34.9]} 31... Rf4 {[%clk 0:00:23.9]} 32. Kg1
{[%clk 0:01:33.8]} 32... Ref8 {[%clk 0:00:22.6]} 33. Kg2 {[%clk 0:01:27.9]}
33... Qe4 {[%clk 0:00:19.3]} 34. Kf2 {[%clk 0:01:26.6]} 34... Re8 {[%clk
0:00:16.9]} 35. Qd2 {[%clk 0:01:23.4]} 35... Ref8 {[%clk 0:00:13.9]} 36. Qc3
{[%clk 0:01:23.6]} 36... Kg8 {[%clk 0:00:14]} 37. h5 {[%clk 0:01:22.2]} 37... g5
{[%clk 0:00:13.2]} 38. Qb3+ {[%clk 0:01:22]} 38... Kh8 {[%clk 0:00:12.8]} 39.
Rg3 {[%clk 0:01:17.1]} 39... g4 {[%clk 0:00:12.8]} 40. Qb4 {[%clk 0:01:17.2]}
40... Rxf3+ {[%clk 0:00:12.3]} 41. Rxf3 {[%clk 0:01:17.8]} 41... Rxf3+ {[%clk
0:00:12]} 42. Kg1 {[%clk 0:01:18.5]} 42... Rg3+ {[%clk 0:00:08]} 43. Kf2 {[%clk
0:01:17.2]} 43... Qf3+ {[%clk 0:00:08.2]} 44. Ke1 {[%clk 0:01:17.4]} 44... Qe3+
{[%clk 0:00:08.3]} 45. Kd1 {[%clk 0:01:17.5]} 45... Qd3+ {[%clk 0:00:08.7]} 46.
Ke1 {[%clk 0:01:17.1]} 46... Rg1+ {[%clk 0:00:08.2]} 47. Kf2 {[%clk 0:01:17.6]}
47... Qg3+ {[%clk 0:00:08]} 48. Ke2 {[%clk 0:01:18]} 48... Re1+ {[%clk
0:00:08.2]} 49. Qxe1 {[%clk 0:01:18.3]} 49... Qxe1+ {[%clk 0:00:05.7]} 50. Kxe1
{[%clk 0:01:18.7]} 50... Kg7 {[%clk 0:00:06.3]} 51. Kf2 {[%clk 0:01:19.3]} 51...
Kh6 {[%clk 0:00:06.7]} 52. Kg3 {[%clk 0:01:19.9]} 52... Kxh5 {[%clk 0:00:07.4]}
53. b4 {[%clk 0:01:20.8]} 53... Kg5 {[%clk 0:00:07.8]} 54. b5 {[%clk 0:01:21.2]}
54... h5 {[%clk 0:00:07.6]} 55. a4 {[%clk 0:01:20.7]} 55... h4+ {[%clk
0:00:07.4]} 56. Kg2 {[%clk 0:01:21.6]} 56... Kf4 {[%clk 0:00:08]} 57. a5 {[%clk
0:01:21.2]} 57... Ke4 {[%clk 0:00:08]} 58. a6 {[%clk 0:01:21.4]} 58... bxa6
{[%clk 0:00:04.5]} 59. bxc6 {[%clk 0:01:21.7]} 59... Kxd4 {[%clk 0:00:04.6]} 60.
c7 {[%clk 0:01:22.1]} 60... h3+ {[%clk 0:00:04.7]} 61. Kg3 {[%clk 0:01:22.4]}
61... a5 {[%clk 0:00:04.3]} 62. c8=Q {[%clk 0:01:22.6]} 62... a4 {[%clk
0:00:04.7]} 63. Qxg4+ {[%clk 0:01:22.1]} 63... Kc3 {[%clk 0:00:05.1]} 64. Qxa4
{[%clk 0:01:22.7]} 64... a5 {[%clk 0:00:03.5]} 65. Qxa5+ {[%clk 0:01:23.2]}
65... Kb2 {[%clk 0:00:04.2]} 66. Qd2+ {[%clk 0:01:21.4]} 1-0

[Event "*** SCC Grand Prix: Titled Tuesday Blitz"]
[Site "Chess.com"]
[Date "2020.10.06"]
[Round "6"]
[White "Bulldog167"]
[Black "Sashadav97"]
[Result "1-0"]
[WhiteElo "2783"]
[BlackElo "2600"]
[TimeControl "180+1"]
[EndTime "11:08:35 PDT"]
[Termination "Bulldog167 won by resignation"]

1. d4 {[%clk 0:03:00.9]} 1... d5 {[%clk 0:02:58.6]} 2. c4 {[%clk 0:03:01]} 2...
e6 {[%clk 0:02:58.9]} 3. Nc3 {[%clk 0:03:00.7]} 3... Nf6 {[%clk 0:02:59.2]} 4.
Nf3 {[%clk 0:03:00.6]} 4... dxc4 {[%clk 0:02:59.6]} 5. e4 {[%clk 0:03:00.3]}
5... Bb4 {[%clk 0:02:59.6]} 6. Bg5 {[%clk 0:03:00.5]} 6... b5 {[%clk 0:02:58.7]}
7. a4 {[%clk 0:02:59.2]} 7... c5 {[%clk 0:02:58.5]} 8. axb5 {[%clk 0:02:46.8]}
8... cxd4 {[%clk 0:02:57.9]} 9. Bxf6 {[%clk 0:02:40.9]} 9... Qxf6 {[%clk
0:02:56.7]} 10. Qxd4 {[%clk 0:02:41.3]} 10... Qxd4 {[%clk 0:02:55.6]} 11. Nxd4
{[%clk 0:02:42.2]} 11... Bb7 {[%clk 0:02:54.3]} 12. f3 {[%clk 0:02:34.9]} 12...
O-O {[%clk 0:02:48.8]} 13. Nc2 {[%clk 0:02:16.4]} 13... Bc5 {[%clk 0:02:34]} 14.
Bxc4 {[%clk 0:02:15.7]} 14... Nd7 {[%clk 0:02:34.2]} 15. Ke2 {[%clk 0:02:12.4]}
15... Ne5 {[%clk 0:02:30.5]} 16. b3 {[%clk 0:02:10.3]} 16... Rfc8 {[%clk
0:02:00.5]} 17. Rhc1 {[%clk 0:02:09.6]} 17... g5 {[%clk 0:01:49.3]} 18. Na4
{[%clk 0:01:58.4]} 18... Be7 {[%clk 0:01:29.8]} 19. Ne3 {[%clk 0:01:58.3]} 19...
Kf8 {[%clk 0:01:21.4]} 20. b6 {[%clk 0:01:43.5]} 20... a6 {[%clk 0:01:15.6]} 21.
Kf2 {[%clk 0:01:30.7]} 21... Bd6 {[%clk 0:01:14.5]} 22. Be2 {[%clk 0:01:30.2]}
22... Ke7 {[%clk 0:01:12.9]} 23. Nc4 {[%clk 0:01:22.3]} 23... Nxc4 {[%clk
0:01:11.2]} 24. bxc4 {[%clk 0:01:22.1]} 24... Be5 {[%clk 0:01:01.2]} 25. Rab1
{[%clk 0:01:06.3]} 25... Rd8 {[%clk 0:00:31.7]} 26. c5 {[%clk 0:00:59.2]} 26...
Rac8 {[%clk 0:00:23]} 27. Kf1 {[%clk 0:00:53]} 27... g4 {[%clk 0:00:19.8]} 28.
Nb2 {[%clk 0:00:42]} 28... gxf3 {[%clk 0:00:19.5]} 29. gxf3 {[%clk 0:00:41.9]}
29... Bxh2 {[%clk 0:00:19.3]} 30. Nd3 {[%clk 0:00:35.4]} 30... a5 {[%clk
0:00:14.2]} 31. Ra1 {[%clk 0:00:17.6]} 31... Ba6 {[%clk 0:00:07.7]} 32. Nf2
{[%clk 0:00:17.4]} 32... Bb7 {[%clk 0:00:04.9]} 33. Rxa5 {[%clk 0:00:17.2]}
33... Rg8 {[%clk 0:00:04.4]} 34. Ng4 {[%clk 0:00:16.3]} 34... Bf4 {[%clk
0:00:04.5]} 35. Ra7 {[%clk 0:00:16]} 35... Rb8 {[%clk 0:00:02]} 36. Rd1 {[%clk
0:00:13.6]} 36... h5 {[%clk 0:00:01.8]} 37. c6 {[%clk 0:00:14.2]} 37... hxg4
{[%clk 0:00:01.5]} 38. Rd7+ {[%clk 0:00:14.9]} 38... Kf6 {[%clk 0:00:01.5]} 39.
Raxb7 {[%clk 0:00:15.1]} 39... Rxb7 {[%clk 0:00:01.4]} 40. Rxb7 {[%clk
0:00:15.8]} 40... gxf3 {[%clk 0:00:02.3]} 41. Bxf3 {[%clk 0:00:15.6]} 41... Be3
{[%clk 0:00:02.9]} 42. c7 {[%clk 0:00:13.9]} 42... Ke5 {[%clk 0:00:02.6]} 43.
Rb8 {[%clk 0:00:13.9]} 43... Rg3 {[%clk 0:00:03.5]} 44. c8=Q {[%clk 0:00:13.3]}
44... Kf4 {[%clk 0:00:04.4]} 45. Bg2 {[%clk 0:00:11.6]} 1-0

[Event "*** SCC Grand Prix: Titled Tuesday Blitz"]
[Site "Chess.com"]
[Date "2020.10.06"]
[Round "6"]
[White "Angel_Hranitel_37"]
[Black "sokidze"]
[Result "1-0"]
[WhiteElo "2548"]
[BlackElo "2686"]
[TimeControl "180+1"]
[EndTime "11:08:35 PDT"]
[Termination "Angel_Hranitel_37 won by resignation"]

1. d4 {[%clk 0:03:00]} 1... Nf6 {[%clk 0:02:59.9]} 2. Nf3 {[%clk 0:03:00.5]}
2... e6 {[%clk 0:03:00]} 3. c4 {[%clk 0:03:00.3]} 3... b6 {[%clk 0:02:59.7]} 4.
g3 {[%clk 0:03:00.6]} 4... c6 {[%clk 0:02:58.4]} 5. Bg2 {[%clk 0:03:00.5]} 5...
Be7 {[%clk 0:02:58.8]} 6. O-O {[%clk 0:03:00.8]} 6... O-O {[%clk 0:02:59.1]} 7.
Nc3 {[%clk 0:03:01.3]} 7... d5 {[%clk 0:02:59.5]} 8. b3 {[%clk 0:02:58.9]} 8...
a5 {[%clk 0:02:53.4]} 9. Qc2 {[%clk 0:02:58.5]} 9... Ba6 {[%clk 0:02:52.3]} 10.
Na4 {[%clk 0:02:14.5]} 10... Nbd7 {[%clk 0:02:48.6]} 11. Rd1 {[%clk 0:02:00.4]}
11... Rc8 {[%clk 0:02:43.2]} 12. c5 {[%clk 0:01:27.7]} 12... bxc5 {[%clk
0:02:24.3]} 13. Nxc5 {[%clk 0:01:28.6]} 13... Nxc5 {[%clk 0:02:20.3]} 14. dxc5
{[%clk 0:01:29.5]} 14... Ne4 {[%clk 0:02:11.9]} 15. Ne5 {[%clk 0:01:16.2]} 15...
Nxc5 {[%clk 0:00:59.8]} 16. Ba3 {[%clk 0:01:15.8]} 16... Nb7 {[%clk 0:00:59.3]}
17. Bb2 {[%clk 0:00:39.1]} 17... Qc7 {[%clk 0:00:55.3]} 18. Ng4 {[%clk
0:00:33.5]} 18... f6 {[%clk 0:00:43.8]} 19. e4 {[%clk 0:00:31.9]} 19... Kh8
{[%clk 0:00:29.9]} 20. Qd2 {[%clk 0:00:18.1]} 20... Nc5 {[%clk 0:00:23.7]} 21.
Rac1 {[%clk 0:00:16.5]} 21... Nxe4 {[%clk 0:00:20.3]} 22. Bxe4 {[%clk 0:00:17]}
22... dxe4 {[%clk 0:00:21.2]} 23. Qd7 {[%clk 0:00:17.3]} 23... Qxd7 {[%clk
0:00:16]} 24. Rxd7 {[%clk 0:00:18.2]} 24... Rfe8 {[%clk 0:00:16.9]} 25. Ne3
{[%clk 0:00:13.8]} 25... Kg8 {[%clk 0:00:15.4]} 26. Nc4 {[%clk 0:00:08.6]} 26...
Bxc4 {[%clk 0:00:15.6]} 27. Rxc4 {[%clk 0:00:08.8]} 27... f5 {[%clk 0:00:14.6]}
28. Ra7 {[%clk 0:00:06.8]} 28... Kf8 {[%clk 0:00:06.9]} 29. Ra4 {[%clk
0:00:05.5]} 29... Red8 {[%clk 0:00:05.7]} 30. R4xa5 {[%clk 0:00:05.4]} 30...
Rd1+ {[%clk 0:00:06]} 31. Kg2 {[%clk 0:00:05.4]} 31... Re8 {[%clk 0:00:04.1]}
32. Rc7 {[%clk 0:00:03.6]} 32... Rd2 {[%clk 0:00:04.5]} 33. Be5 {[%clk
0:00:03.9]} 33... Bc5 {[%clk 0:00:04.3]} 34. Rxc5 {[%clk 0:00:04.1]} 34... Rd5
{[%clk 0:00:04.6]} 35. Rxd5 {[%clk 0:00:04.2]} 35... exd5 {[%clk 0:00:05.5]} 36.
Bxg7+ {[%clk 0:00:04.9]} 36... Kg8 {[%clk 0:00:06.2]} 37. Bd4 {[%clk 0:00:05.1]}
37... Ra8 {[%clk 0:00:06.3]} 38. Rg7+ {[%clk 0:00:05.4]} 38... Kf8 {[%clk
0:00:06.4]} 39. Ra7 {[%clk 0:00:05.9]} 39... Rb8 {[%clk 0:00:05.3]} 40. Rxh7
{[%clk 0:00:06.3]} 40... Kg8 {[%clk 0:00:04.9]} 41. Rh8+ {[%clk 0:00:06.4]} 1-0